bitfinex/quotes_ETHUSD_20250107
["timestamp","ask_amount","ask_price","bid_price","bid_amount"]
[1736284281343,0.08660036,3404.9,3404.7,0.257]
[1736284281548,5.96070036,3404.9,3404.7,0.257]
[1736284282285,6.7161804,3404.9,3404.7,0.257]
[1736284282581,0.03139617,3404.8,3404.7,0.257]
[1736284282759,5.8741,3404.8,3404.7,0.257]
[1736284282956,5.96085571,3404.8,3404.7,0.257]
[1736284283384,5.96085571,3404.8,3404.7,6.78847997]
[1736284283567,5.6421,3404.8,3404.7,10.44775716]
[1736284283763,5.72658734,3404.8,3404.7,9.95864932]
[1736284284183,5.72658734,3404.8,3404.7,9.96614932]
[1736284285574,5.72658734,3404.8,3404.7,9.95864932]
[1736284285775,5.72658734,3404.8,3404.7,6.00860974]
[1736284286076,5.6421,3404.8,3404.7,3.0]
[1736284286270,5.6421,3404.8,3404.7,0.256]
[1736284286583,5.727046,3404.8,3404.7,0.256]
[1736284287502,5.727046,3404.8,3404.7,3.256]
[1736284287869,5.727046,3404.8,3404.7,3.19311]
[1736284288284,5.727046,3404.8,3404.7,4.82105959]
[1736284288788,5.6421,3404.8,3404.7,4.82105959]
[1736284288972,5.72679726,3404.8,3404.7,0.2635]
[1736284289788,5.72679726,3404.8,3404.7,3.75061]
[1736284290005,5.72679726,3404.8,3404.7,0.8135]
[1736284290387,5.72679726,3404.8,3404.7,3.75061]
[1736284292802,5.6421,3404.8,3404.7,3.75061]
[1736284292981,5.72693718,3404.8,3404.7,4.82180959]
[1736284294317,5.72693718,3404.8,3404.7,3.75061]
[1736284294499,5.72693718,3404.8,3404.7,0.2635]
[1736284296127,5.72693718,3404.8,3404.7,3.75061]
[1736284296333,5.72693718,3404.8,3404.7,5.34631]
[1736284296700,5.6421,3404.8,3404.7,5.34631]
[1736284296898,5.6421,3404.8,3404.7,9.91897337]
[1736284297103,5.7269605,3404.8,3404.7,9.91897337]
[1736284297831,5.6421,3404.8,3404.7,9.91897337]
[1736284298037,5.6421,3404.8,3404.7,10.40808121]
[1736284298332,1.5741,3406.0,3404.7,10.40808121]
[1736284298549,1.5741,3406.3,3405.2,3.0]
[1736284298702,1.5741,3406.3,3404.7,0.256]
[1736284298703,1.5741,3405.3,3404.7,0.256]
[1736284298900,0.03139617,3405.2,3404.7,0.256]
[1736284299103,5.8731,3405.2,3404.7,0.256]
[1736284299336,0.0852492,3405.1,3404.9,3.0]
[1736284299519,0.0852492,3405.1,3404.8,0.806]
[1736284299737,5.9583492,3405.1,3404.8,0.806]
[1736284300523,5.9583492,3405.1,3404.9,0.0075]
[1736284305607,5.9583492,3405.1,3404.9,3.0075]
[1736284307526,5.9583492,3405.1,3404.9,0.0075]
[1736284307732,5.8731,3405.1,3404.9,2.94444]
[1736284308335,0.08519479,3405.0,3404.9,2.94444]
[1736284308526,5.95829479,3405.0,3404.9,2.94444]
[1736284310149,5.95829479,3405.0,3404.9,7.338114]
[1736284310365,8.05e-06,3405.0,3404.9,7.345614]
[1736284310513,8.05e-06,3405.0,3404.9,9.011914]
[1736284310706,8.05e-06,3405.0,3404.9,9.45329601]
[1736284310920,8.05e-06,3405.0,3404.9,11.70329601]
[1736284311104,0.03639617,3407.1,3405.2,2.93508]
[1736284311309,1.5011,3407.0,3405.7,3.38455323]
[1736284311555,2.93548,3406.6,3405.8,0.256]
[1736284311737,1.5011,3406.4,3405.8,3.19216]
[1736284311936,7.3725,3406.4,3405.9,3.0]
[1736284312140,0.0828291,3406.3,3405.9,3.0]
[1736284312303,5.9542291,3406.3,3406.0,0.5575]
[1736284312509,5.9542291,3406.3,3406.0,2.2238]
[1736284313548,5.9542291,3406.3,3406.2,3.0075]
[1736284313777,5.85740443,3406.3,3406.2,3.0075]
[1736284314179,5.93799316,3406.3,3406.1,0.0075]
[1736284314488,5.93799316,3406.3,3406.2,2.94332]
[1736284315083,5.93799316,3406.3,3406.2,0.0075]
[1736284315384,4.71378259,3406.3,3406.2,0.0075]
[1736284316381,4.71378259,3406.3,3406.2,3.0075]
[1736284317640,4.71378259,3406.3,3406.2,2.94332]
[1736284318881,4.71378259,3406.3,3406.2,4.01221766]
[1736284319039,4.71378259,3406.3,3406.2,7.01221766]
[1736284319239,4.63319386,3406.3,3406.2,7.01221766]
[1736284320737,4.63319386,3406.3,3406.2,5.49897687]
[1736284320957,4.63319386,3406.3,3406.2,2.49147687]
[1736284321163,4.71532845,3406.3,3406.2,2.49147687]
[1736284321362,6.30052845,3406.3,3406.2,2.49147687]
[1736284321992,9.23625845,3406.3,3406.2,2.49147687]
[1736284322191,9.23625845,3406.3,3405.9,0.256]
[1736284322192,1.5852,3406.2,3405.9,0.256]
[1736284322512,1.5852,3406.0,3405.9,0.256]
[1736284322712,6.21839386,3406.0,3405.9,0.256]
[1736284322911,9.23610681,3406.0,3405.8,1.49488612]
[1736284323210,0.03139617,3405.9,3405.8,1.49488612]
[1736284323382,8.23382133,3405.9,3405.8,1.49488612]
[1736284323585,8.20242516,3405.9,3405.8,1.49488612]
[1736284323801,2.93616,3405.8,3405.7,0.256]
[1736284324120,9.18595003,3405.8,3405.7,0.256]
[1736284324285,9.23585727,3405.8,3405.7,0.256]
[1736284324489,10.51635213,3405.8,3405.7,0.256]
[1736284324783,10.51635213,3405.8,3404.8,2.70135811]
[1736284324784,5.99499213,3405.8,3404.8,2.70135811]
[1736284324990,2.93651,3405.4,3404.9,0.256]
[1736284325188,1.60349617,3405.3,3404.9,3.256]
[1736284325377,6.31636955,3405.3,3404.9,0.256]
[1736284325576,6.28497338,3405.3,3404.9,0.256]
[1736284325920,0.03139617,3405.2,3404.9,3.256]
[1736284326072,4.63319386,3405.2,3404.9,0.256]
[1736284326276,4.63319386,3405.2,3404.9,3.877294]
[1736284326589,0.07954738,3405.1,3405.0,6.19284]
[1736284326800,4.71274124,3405.1,3405.0,6.19284]
[1736284327004,4.63319386,3405.1,3405.0,6.75034]
[1736284327178,4.71274124,3405.1,3405.0,9.2446714]
[1736284327377,4.71274124,3405.1,3405.0,11.32114726]
[1736284327604,4.63319386,3405.1,3405.0,11.32114726]
[1736284329027,4.63319386,3405.1,3405.0,7.83430726]
[1736284329231,4.63319386,3405.1,3405.0,5.7503314]
[1736284331387,4.71301329,3405.1,3405.0,4.25544528]
[1736284331783,4.71301329,3405.1,3405.0,4.81294528]
[1736284332026,4.71301329,3405.1,3405.0,10.41025378]
[1736284332391,4.63319386,3405.1,3405.0,10.41025378]
[1736284332661,4.63319386,3405.1,3405.0,9.94195511]
[1736284333222,4.63319386,3405.1,3405.0,44.94195511]
[1736284334361,4.63319386,3405.1,3405.0,50.86893117]
[1736284334665,2.45639537,3405.1,3405.0,50.86893117]
[1736284335036,1.6211,3406.3,3405.0,50.87643117]
[1736284335241,1.6211,3406.7,3406.3,2.93572]
[1736284335561,0.08011474,3406.6,3406.5,3.0]
[1736284335770,5.95121474,3406.6,3406.5,38.0]
[1736284336111,5.95121474,3406.6,3406.5,3.0]
[1736284336365,5.8711,3406.6,3406.5,3.0]
[1736284336523,5.95121474,3406.6,3406.5,38.0]
[1736284336868,5.8711,3406.6,3406.5,38.0]
[1736284338638,5.8711,3406.6,3406.5,39.5916]
[1736284338843,5.8711,3406.6,3406.5,45.33381547]
[1736284339668,5.8711,3406.6,3406.5,38.0075]
[1736284340066,5.8711,3406.6,3406.5,3.0]
[1736284340426,7.415,3406.6,3406.5,3.256]
[1736284340738,7.49679287,3406.6,3406.5,3.256]
[1736284344783,7.49679287,3406.6,3406.5,0.256]
[1736284344943,8.53999416,3406.6,3406.5,0.256]
[1736284347343,8.53973784,3406.6,3406.5,0.256]
[1736284347987,8.45820129,3406.6,3406.5,0.256]
[1736284348371,8.53973784,3406.6,3406.5,0.256]
[1736284348573,7.49653655,3406.6,3406.5,0.256]
[1736284348889,5.8111,3406.6,3406.5,0.256]
[1736284349056,5.8111,3406.6,3406.5,0.2635]
[1736284349380,5.8111,3406.6,3406.5,0.256]
[1736284349944,5.8111,3406.6,3406.5,0.255]
[1736284350182,7.3142,3406.6,3406.5,0.255]
[1736284350904,7.39595404,3406.6,3406.5,0.255]
[1736284351496,11.36463144,3406.6,3406.2,2.70527088]
[1736284351707,0.03139617,3406.5,3406.3,0.255]
[1736284351871,0.08129575,3406.4,3406.3,0.255]
[1736284352055,8.82804575,3406.4,3406.3,0.255]
[1736284352255,1.6429,3406.3,3406.2,0.255]
[1736284352463,8.34223849,3406.3,3406.2,0.255]
[1736284352753,11.32777485,3406.3,3406.2,0.255]
[1736284353995,8.39204485,3406.3,3406.2,0.255]
[1736284354650,7.53520253,3406.3,3406.2,0.255]
[1736284355156,5.89230253,3406.3,3406.2,0.255]
[1736284357619,3.01616,3405.8,3405.7,1.20762076]
[1736284357758,2.93651,3405.4,3405.2,3.02635701]
[1736284358104,10.44430617,3405.4,3405.2,3.02635701]
[1736284358306,10.44430617,3405.4,3405.1,3.63162841]
[1736284358307,2.94418,3405.2,3405.1,3.63162841]
[1736284358459,5.84249617,3405.2,3405.1,3.63162841]
[1736284358669,5.8111,3405.2,3405.1,3.63162841]
[1736284359074,8.82895145,3405.2,3405.1,3.63162841]
[1736284359391,5.89227145,3405.2,3405.1,3.63162841]
[1736284359938,9.5847086,3405.2,3405.1,3.63162841]
[1736284360453,4.60233,3404.8,3404.7,0.275]
[1736284360734,10.49244097,3404.8,3404.7,0.275]
[1736284362442,10.49244097,3404.8,3404.7,0.02]
[1736284363122,10.49244097,3404.8,3404.7,0.0275]
[1736284363123,5.89011097,3404.8,3404.7,0.0275]
[1736284363285,5.89011097,3404.8,3404.7,0.85278]
[1736284363469,5.89011097,3404.8,3404.7,38.29528]
[1736284363680,5.8111,3404.8,3404.7,38.275]
[1736284363889,5.88997879,3404.8,3404.7,38.275]
[1736284364607,5.8111,3404.8,3404.7,38.275]
[1736284366223,5.8111,3404.8,3404.7,3.275]
[1736284366527,5.88997879,3404.8,3404.7,3.275]
[1736284366694,5.88997879,3404.8,3404.7,0.275]
[1736284366876,9.86652967,3404.8,3404.7,0.02]
[1736284367690,6.92949967,3404.8,3404.7,0.02]
[1736284368021,5.88997879,3404.8,3404.7,0.02]
[1736284370510,5.8111,3404.8,3404.7,0.02]
[1736284370724,5.88990103,3404.8,3404.7,0.02]
[1736284371528,5.88990103,3404.8,3404.7,0.61575517]
[1736284372346,5.8111,3404.8,3404.7,0.61575517]
[1736284372547,5.8111,3404.8,3404.7,2.16695517]
[1736284373343,5.8111,3404.8,3404.7,9.19747569]
[1736284373699,1.5683,3406.4,3405.0,0.0075]
[1736284373935,0.11037604,3406.3,3405.7,3.0]
[1736284374133,0.03139617,3406.3,3405.8,3.255]
[1736284374358,5.90339617,3406.3,3405.8,3.255]
[1736284374565,5.872,3406.3,3405.8,3.255]
[1736284374747,0.11037604,3406.2,3405.8,3.255]
[1736284374960,5.98237604,3406.2,3405.8,3.255]
[1736284375281,5.95097987,3406.2,3405.8,3.255]
[1736284375580,0.03139617,3406.1,3405.8,3.255]
[1736284375876,5.90339617,3406.1,3405.8,3.255]
[1736284376092,5.872,3406.1,3405.8,3.255]
[1736284376380,0.03139617,3406.0,3405.8,3.255]
[1736284376534,5.90339617,3406.0,3405.8,3.255]
[1736284376734,5.872,3406.0,3405.8,3.255]
[1736284377856,5.872,3406.0,3405.8,0.255]
[1736284378058,0.03139617,3405.9,3405.8,0.255]
[1736284378399,5.95097987,3405.9,3405.8,0.255]
[1736284378590,5.95097987,3405.9,3405.8,12.28686585]
[1736284378740,5.872,3405.9,3405.8,12.25750551]
[1736284380152,5.94995664,3405.9,3405.8,14.75104157]
[1736284380351,3.01387664,3405.9,3405.8,49.75104157]
[1736284380536,0.03639617,3407.1,3406.7,2.93536]
[1736284380735,0.07535809,3407.0,3406.8,3.254]
[1736284380939,2.8704,3407.0,3406.9,2.93521]
[1736284381139,2.94575809,3407.0,3406.9,2.93521]
[1736284381340,2.8704,3407.0,3406.9,2.93521]
[1736284381684,2.8704,3407.0,3406.8,0.254]
[1736284381987,0.10675426,3406.9,3406.8,0.254]
[1736284382290,2.97715426,3406.9,3406.8,0.254]
[1736284382580,2.90179617,3406.9,3406.8,0.254]
[1736284382781,2.8704,3406.9,3406.8,0.254]
[1736284383266,2.94575809,3406.9,3406.8,3.254]
[1736284383473,2.94575809,3406.9,3406.8,6.1893]
[1736284383672,2.94575809,3406.9,3406.8,0.254]
[1736284384070,2.94575809,3406.9,3406.8,3.1893]
[1736284384286,2.94575809,3406.9,3406.8,4.15379225]
[1736284384442,2.94575809,3406.9,3406.8,4.70379225]
[1736284384789,2.8704,3406.9,3406.8,4.70379225]
[1736284385135,2.8704,3406.9,3406.8,9.26039225]
[1736284393304,2.8704,3406.9,3406.8,12.08336201]
[1736284394998,2.8704,3406.9,3406.8,11.82936201]
[1736284395214,2.8704,3406.9,3406.8,12.08336201]
[1736284397540,0.005,3407.1,3407.0,2.94263]
[1736284397724,0.005,3407.1,3407.0,5.94263]
[1736284398094,5.8752,3407.1,3407.0,5.94263]
[1736284398405,5.95254071,3407.1,3407.0,5.94263]
[1736284398612,6.56494025,3407.1,3407.0,0.254]
[1736284398812,6.56494025,3407.1,3406.5,2.82296976]
[1736284398813,6.56494025,3407.1,3406.8,0.254]
[1736284399045,1.5799,3406.9,3406.8,0.254]
[1736284399337,7.5276661,3406.9,3406.8,0.254]
[1736284399538,8.36245775,3406.9,3406.8,0.254]
[1736284399712,8.36245775,3406.9,3406.5,3.53024379]
[1736284399910,0.03139617,3406.8,3406.6,0.254]
[1736284400123,5.90159617,3406.8,3406.6,0.254]
[1736284400437,0.0775661,3406.7,3406.6,0.254]
[1736284400751,5.9477661,3406.7,3406.6,0.254]
[1736284401398,5.9477661,3406.7,3406.6,3.18947]
[1736284405838,5.9477661,3406.7,3406.6,3.78451578]
[1736284406332,5.9477661,3406.7,3406.6,3.18947]
[1736284406540,5.9477661,3406.7,3406.6,0.254]
[1736284406713,6.70053271,3406.7,3406.6,0.254]
[1736284407349,5.9477661,3406.7,3406.6,0.254]
[1736284408448,5.9477661,3406.7,3406.5,2.93555]
[1736284408744,5.9477661,3406.7,3406.6,0.254]
[1736284408950,5.9477661,3406.7,3406.6,3.18947]
[1736284409950,5.9477661,3406.7,3406.6,6.74697]
[1736284410118,0.20635067,3406.7,3406.6,10.41210994]
[1736284410445,0.005,3407.1,3407.0,3.49263]
[1736284410649,0.005,3407.1,3407.0,5.82296976]
[1736284410810,5.8752,3407.1,3407.0,5.82296976]
[1736284411149,7.1e-06,3407.2,3407.1,3.0]
[1736284411306,0.005,3407.8,3407.7,5.93453]
[1736284411518,5.874,3407.8,3407.7,6.18853]
[1736284412743,5.874,3407.8,3407.7,0.254]
[1736284412744,7.3846,3407.8,3407.7,0.254]
[1736284417876,7.45453206,3407.8,3407.7,0.254]
[1736284419174,5.94393206,3407.8,3407.7,3.07696976]
[1736284419359,5.94393206,3407.8,3407.7,3.38466674]
[1736284419673,5.94393206,3407.8,3407.7,0.56169698]
[1736284420055,5.94393206,3407.8,3407.7,0.254]
[1736284423142,7.53923206,3407.8,3407.7,0.254]
[1736284425085,7.53923206,3407.8,3407.2,3.0]
[1736284425302,0.03668711,3407.7,3407.3,0.254]
[1736284425583,0.07046887,3407.6,3407.3,0.254]
[1736284425765,5.93946887,3407.6,3407.3,0.254]
[1736284426459,0.03668727,3407.5,3407.2,5.93494]
[1736284426658,5.90568727,3407.5,3407.4,0.254]
[1736284426858,5.869,3407.5,3407.4,1.25343037]
[1736284427155,5.93946887,3407.5,3407.4,1.25343037]
[1736284435044,5.93946887,3407.5,3407.4,2.75257592]
[1736284436343,5.93946887,3407.5,3407.4,8.51032568]
[1736284436666,5.93946887,3407.5,3407.4,14.55862664]
[1736284436789,5.53985382,3407.5,3407.4,15.25863118]
[1736284436995,3.95785382,3407.5,3407.4,15.25863118]
[1736284437199,3.88738495,3407.5,3407.4,15.25863118]
[1736284437747,3.88738495,3407.5,3407.4,18.98091992]
[1736284438844,3.88738495,3407.5,3407.4,18.97341992]
[1736284439041,3.88738495,3407.5,3407.4,17.38571992]
[1736284439240,3.88738495,3407.5,3407.4,14.96252011]
[1736284440498,3.88738495,3407.5,3407.4,16.77623255]
[1736284442048,3.88738495,3407.5,3407.4,14.96252011]
[1736284444400,0.005,3408.0,3407.9,4.44465]
[1736284444616,108.891107,3408.7,3408.3,2.93394]
[1736284444815,5.68596777,3408.0,3407.9,2.93435]
[1736284445048,5.6156,3408.0,3407.9,3.18735]
[1736284445249,5.68596777,3408.0,3407.9,6.18735]
[1736284446540,5.68596777,3408.0,3407.9,12.7161804]
[1736284448212,5.68596777,3408.0,3407.9,15.31891623]
[1736284448542,3.51084441,3408.0,3407.9,15.31891623]
[1736284449344,3.51084441,3408.0,3407.9,11.50889568]
[1736284452233,3.51084441,3408.0,3407.9,14.48301598]
[1736284452460,3.51084441,3408.0,3407.9,14.47551598]
[1736284452657,3.51084441,3408.0,3407.9,12.71490089]
[1736284453299,5.15334441,3408.0,3407.9,3.95758113]
[1736284453649,5.15334441,3408.0,3407.9,2.75157592]
[1736284453855,5.15334441,3408.0,3407.9,2.49857592]
[1736284455081,5.15334441,3408.0,3407.6,3.253]
[1736284455405,0.03668485,3407.9,3407.5,0.99943037]
[1736284455568,1.63692773,3407.8,3407.5,0.99943037]
[1736284455771,0.03668707,3407.7,3407.5,0.99943037]
[1736284455970,0.07078775,3407.6,3407.5,3.93412037]
[1736284456164,3.51126439,3407.6,3407.5,3.93412037]
[1736284456370,3.51126439,3407.6,3407.5,8.2369898]
[1736284456596,3.44047664,3407.6,3407.5,8.2369898]
[1736284457004,3.44047664,3407.6,3407.5,6.93412037]
[1736284457310,3.44047664,3407.6,3407.5,0.99943037]
[1736284457686,3.44047664,3407.6,3407.5,3.93413037]
[1736284458093,3.44047664,3407.6,3407.5,6.64095296]
[1736284458309,3.44047664,3407.6,3407.5,3.70625296]
[1736284458603,5.03767664,3407.6,3407.5,3.70625296]
[1736284458808,5.10817661,3407.6,3407.5,3.70625296]
[1736284459507,5.10817661,3407.6,3407.5,5.43327592]
[1736284459654,5.10817661,3407.6,3407.5,2.49857592]
[1736284459859,5.03767664,3407.6,3407.5,2.49857592]
[1736284460960,3.44047664,3407.6,3407.5,5.43327592]
[1736284462381,3.44047664,3407.6,3407.5,6.64095296]
[1736284462671,3.44047664,3407.6,3407.5,3.70625296]
[1736284463467,3.44047664,3407.6,3407.5,3.95925296]
[1736284463666,3.44047664,3407.6,3407.5,2.75157592]
[1736284465057,3.51070441,3407.6,3407.5,2.75157592]
[1736284465367,3.44047664,3407.6,3407.5,2.75157592]
[1736284465583,3.51070441,3407.6,3407.5,1.25243037]
[1736284465776,3.44047664,3407.6,3407.5,1.25243037]
[1736284466267,3.44047664,3407.6,3407.5,0.99943037]
[1736284468787,3.44047664,3407.6,3407.4,1.75214555]
[1736284468949,0.03668688,3407.5,3407.4,1.75214555]
[1736284469156,3.44047664,3407.5,3407.4,4.68692555]
[1736284470782,3.44047664,3407.5,3407.4,1.49914555]
[1736284470959,5.44079299,3407.5,3407.4,1.49914555]
[1736284471344,5.51102076,3407.5,3407.4,2.50005678]
[1736284472802,5.51102076,3407.5,3407.0,0.252]
[1736284472998,0.03669111,3407.4,3407.0,0.252]
[1736284473203,3.47716775,3407.4,3407.0,0.252]
[1736284473407,0.0698466,3407.3,3407.1,2.93503]
[1736284473581,3.44047664,3407.3,3407.1,2.93503]
[1736284473780,0.03669014,3407.2,3407.1,2.93503]
[1736284474110,3.54701338,3407.2,3407.1,2.93503]
[1736284474316,3.44047664,3407.2,3407.1,2.93503]
[1736284474965,3.44047664,3407.2,3407.1,8.4348674]
[1736284475567,3.44047664,3407.2,3407.1,2.4998374]
[1736284475964,3.44047664,3407.2,3407.1,8.4348774]
[1736284477915,3.44047664,3407.2,3407.1,6.93573185]
[1736284478812,3.44047664,3407.2,3407.1,7.18773185]
[1736284481518,3.44047664,3407.2,3407.1,8.32079874]
[1736284481721,1.80397666,3407.2,3407.1,10.44739874]
[1736284481921,1.31017714,3407.2,3407.1,10.44739874]
[1736284482091,1.31017714,3407.2,3407.1,9.88989874]
[1736284482306,1.31017714,3407.2,3407.1,8.32079874]
[1736284483207,1.31017714,3407.2,3407.1,7.18773185]
[1736284483812,1.31017714,3407.2,3407.1,8.68851373]
[1736284485236,1.31017714,3407.2,3407.1,7.18773185]
[1736284487017,1.31017714,3407.2,3407.1,9.35203185]
[1736284487259,1.31017714,3407.2,3407.1,9.73877866]
[1736284487442,1.31017714,3407.2,3407.1,11.40924421]
[1736284487955,1.31017714,3407.2,3407.1,11.0224974]
[1736284488145,1.31017714,3407.2,3407.1,46.0224974]
[1736284488342,1.31017714,3407.2,3407.1,47.52356146]
[1736284489057,1.31017714,3407.2,3407.1,47.53106146]
[1736284491531,1.31017714,3407.2,3407.1,49.53196514]
[1736284492644,1.31017714,3407.2,3407.1,51.95516495]
[1736284494278,1.31017714,3407.2,3407.1,51.94766495]
[1736284495498,1.31017714,3407.2,3407.1,51.69566495]
[1736284495797,1.31017714,3407.2,3407.1,50.33336495]
[1736284500127,1.31017714,3407.2,3407.1,47.91016514]
[1736284502917,1.31017714,3407.2,3407.1,47.36016514]
[1736284503114,1.31017714,3407.2,3407.1,42.68969959]
[1736284503273,1.34686576,3407.2,3407.1,46.93084113]
[1736284503476,1.34686576,3407.2,3407.1,11.93084113]
[1736284504018,1.34686576,3407.2,3407.1,8.93084113]
[1736284504520,1.34686576,3407.2,3407.1,9.92993745]
[1736284504521,1.31017714,3407.2,3407.1,9.92993745]
[1736284505414,1.34686709,3407.2,3407.1,8.68879591]
[1736284505579,1.31017714,3407.2,3407.1,8.68879591]
[1736284506836,1.34686709,3407.2,3407.1,8.68879591]
[1736284507114,1.34686709,3407.2,3407.1,5.75375591]
[1736284507323,1.6427638,3407.2,3407.1,5.50175591]
[1736284507526,3.1164638,3407.2,3407.1,2.50175591]
[1736284507833,3.43595252,3407.2,3407.1,3.71506448]
[1736284508407,6.37091252,3407.2,3407.1,3.71506448]
[1736284508592,9.1577633,3407.2,3407.1,3.71506448]
[1736284508793,12.4987633,3407.2,3407.1,3.46006562]
[1736284508992,4.34837633,3407.1,3407.0,1.81902807]
[1736284509284,4.34837633,3407.1,3405.4,6.26514526]
[1736284509285,0.2575,3406.4,3406.3,1.50481815]
[1736284509483,2.82058147,3406.4,3406.3,1.50481815]
[1736284509685,3.48965071,3406.4,3406.3,1.50481815]
[1736284510935,1.4737,3406.3,3405.0,3.26612807]
[1736284511105,0.0075,3406.1,3405.2,0.252]
[1736284511300,1.4737,3405.9,3405.2,3.18866]
[1736284511517,0.03671078,3405.8,3405.2,3.0]
[1736284511719,1.34688628,3405.8,3405.6,2.93627]
[1736284512031,0.06682646,3405.7,3405.6,5.93627]
[1736284512330,1.3770036,3405.7,3405.6,5.93627]
[1736284512533,1.31017714,3405.7,3405.6,5.93627]
[1736284513117,1.31017714,3405.7,3405.6,7.079897]
[1736284513305,7.14e-06,3405.7,3405.6,8.92124381]
[1736284513503,0.03670683,3406.7,3406.4,0.55]
[1736284513841,0.03670683,3406.7,3406.6,3.0]
[1736284514004,5.871,3406.7,3406.4,0.55]
[1736284514207,0.03669676,3406.6,3406.5,6.48556]
[1736284514390,2.69031077,3407.4,3406.6,0.55]
[1736284514899,1.4662,3407.4,3406.6,0.55]
[1736284515105,7.3365,3407.4,3407.0,5.75866073]
[1736284515492,0.03669211,3407.3,3407.1,2.93502]
[1736284515692,5.90699211,3407.3,3407.1,2.93502]
[1736284515888,5.8703,3407.3,3407.1,2.93502]
[1736284516088,0.03669022,3407.2,3407.1,2.93502]
[1736284516290,5.90699022,3407.2,3407.1,2.93502]
[1736284516539,5.8703,3407.2,3407.1,5.93502]
[1736284520843,5.8703,3407.2,3407.1,3.0]
[1736284522002,5.8703,3407.2,3407.1,5.93504]
[1736284522839,4.40282,3407.2,3407.1,8.49712705]
[1736284523040,2.730786,3407.2,3407.1,9.74713159]
[1736284523540,2.730786,3407.2,3407.1,9.04712705]
[1736284524039,2.730786,3407.2,3407.1,9.29912705]
[1736284524654,2.730786,3407.2,3407.1,10.7987244]
[1736284525248,2.304386,3407.2,3407.1,10.7987244]
[1736284525553,0.048706,3407.2,3407.1,11.49872894]
[1736284525770,0.048706,3407.2,3407.1,12.70856441]
[1736284525771,6e-06,3407.2,3407.1,12.70856441]
[1736284525909,1.5511,3408.4,3407.3,0.0075]
[1736284526109,5.8688,3408.4,3408.3,2.82354073]
[1736284526429,5.8688,3408.4,3408.3,6.00955073]
[1736284526827,5.93551239,3408.4,3408.3,6.00955073]
[1736284528253,5.93551239,3408.4,3408.3,9.00955073]
[1736284529113,5.93551239,3408.4,3408.3,10.99605073]
[1736284529316,5.33899002,3408.4,3408.3,11.63125367]
[1736284529510,5.33899002,3408.4,3408.3,9.00955073]
[1736284529944,5.33899002,3408.4,3408.3,10.00737568]
[1736284530159,5.33899002,3408.4,3408.3,10.60608592]
[1736284530517,6.89009002,3408.4,3408.3,0.99782495]
[1736284530756,9.75127942,3408.4,3408.3,0.99782495]
[1736284531455,9.75127942,3408.4,3408.3,2.82354073]
[1736284531858,8.20017942,3408.4,3408.3,5.75755073]
[1736284532075,5.33899002,3408.4,3408.3,8.75755073]
[1736284532414,5.33899002,3408.4,3408.3,10.19405073]
[1736284533938,5.33899002,3408.4,3408.3,8.75755073]
[1736284535979,5.28899002,3408.4,3408.3,9.00855073]
[1736284536169,3.11396371,3408.4,3408.3,9.00855073]
[1736284538395,3.11396371,3408.4,3408.3,9.55855073]
[1736284538592,2.81253204,3408.4,3408.3,10.96445661]
[1736284540675,2.81253204,3408.4,3408.3,11.21325661]
[1736284541502,2.81253204,3408.4,3408.3,9.25735073]
[1736284543077,2.81253204,3408.4,3408.3,9.00635073]
[1736284543273,2.81253204,3408.4,3408.3,9.25735073]
[1736284554436,2.81253204,3408.4,3408.3,9.80735073]
[1736284555347,2.81253204,3408.4,3408.3,9.25735073]
[1736284556495,0.63764038,3408.4,3408.3,9.25735073]
[1736284557420,0.63764038,3408.4,3408.3,6.43381]
[1736284557600,0.63764038,3408.4,3408.3,9.25735073]
[1736284558239,0.63764038,3408.4,3408.3,9.80735073]
[1736284558548,0.63764038,3408.4,3408.3,6.87334073]
[1736284560245,0.63764038,3408.4,3408.3,7.87380454]
[1736284561914,0.63764038,3408.4,3408.3,10.58542172]
[1736284564657,0.63764038,3408.4,3408.3,11.19461432]
[1736284565515,0.63764038,3408.4,3408.3,11.67559479]
[1736284566474,97.17778232,3408.7,3408.6,0.55]
[1736284566754,103.04518232,3408.7,3408.6,6.37354073]
[1736284567839,1.4588,3408.6,3408.3,4.57007359]
[1736284568043,0.03667871,3408.5,3408.3,7.39361432]
[1736284568319,8.76526811,3408.5,3408.4,3.0]
[1736284568654,5.8674,3408.5,3408.4,3.0]
[1736284570356,5.8674,3408.5,3408.4,5.50934998]
[1736284571473,5.8674,3408.5,3408.4,7.33019351]
[1736284572479,7.4856,3408.5,3408.4,4.33019351]
[1736284573834,7.551825,3408.5,3408.4,4.33019351]
[1736284574055,10.4130144,3408.5,3408.4,4.33019351]
[1736284574363,10.4130144,3408.5,3408.4,1.00373999]
[1736284575288,1.6105,3408.4,3408.3,0.2488]
[1736284575569,7.51458161,3408.4,3408.3,0.2488]
[1736284575729,7.544125,3408.4,3408.3,0.2488]
[1736284575930,8.34146384,3408.4,3408.3,0.2488]
[1736284576130,7.536625,3408.4,3408.3,0.2488]
[1736284577262,7.536625,3408.4,3408.3,1.25335965]
[1736284577677,7.544125,3408.4,3408.3,1.25335965]
[1736284578269,7.544125,3408.4,3408.3,2.75896964]
[1736284579560,7.544125,3408.4,3408.3,0.2488]
[1736284579746,10.4053144,3408.4,3408.3,0.2488]
[1736284587988,5.933625,3408.4,3408.3,0.2488]
[1736284588173,5.11042594,3408.4,3408.3,6.11097794]
[1736284588491,5.11042594,3408.4,3408.3,8.93451867]
[1736284588650,5.11042594,3408.4,3408.3,11.44060808]
[1736284588984,2.93533561,3408.4,3408.3,12.88831994]
[1736284589484,96.31712253,3408.7,3408.6,5.82354073]
[1736284589686,0.10357397,3408.4,3408.3,7.06477921]
[1736284589890,0.04435927,3408.4,3408.3,10.13731994]
[1736284590087,0.10357397,3408.4,3408.3,49.57137363]
[1736284590243,0.04435927,3408.4,3408.3,49.57137363]
[1736284590588,96.25790783,3408.7,3408.6,0.55]
[1736284590748,102.12530783,3408.7,3408.6,6.23473013]
[1736284591146,102.12530783,3408.7,3408.6,38.37354073]
[1736284592526,102.12530783,3408.7,3408.6,45.88589245]
[1736284594418,102.12530783,3408.7,3408.6,10.88589245]
[1736284596871,102.12530783,3408.7,3408.6,11.03281575]
[1736284597271,102.12530783,3408.7,3408.6,13.85635648]
[1736284597516,101.24140059,3408.7,3408.6,16.05588357]